fUSD/lending_fUSD_20250804
["ID","MTS","AMOUNT","RATE_DAILY","PERIOD"]
[377206532,1754290346180,-1561.925184,0.0004757,14]
[377206533,1754290346189,-1561.925184,0.0004757,14]
[377206534,1754290346198,-572.97,0.0004757,120]
[377206535,1754290346207,-609.61,0.0004757,120]
[377206536,1754290346218,-451.64,0.0004757,120]
[377206537,1754290346227,-544.95,0.0004757,120]
[377206538,1754290346237,-151.0,0.0004757,14]
[377206539,1754290346247,-1000.0,0.0004757,120]
[377206540,1754290346257,-278.2490238,0.0004757,120]
[377206541,1754290346811,-440.282274,0.00047262,14]
[377206542,1754290346822,-325.47124956,0.00047395,14]
[377206543,1754290346836,-114.81102444,0.00047395,14]
[377206544,1754290346846,-440.282274,0.00047397,14]
[377206545,1754290346856,-252.60894035,0.0004757,120]
[377206546,1754290346867,-875.84,0.0004757,120]
[377206547,1754290346877,-1081.24,0.0004757,120]
[377206548,1754290346887,-400.0,0.0004757,120]
[377206549,1754290346898,-700.60813439,0.0004757,120]
[377206550,1754290347091,-440.282274,0.00047536,14]
[377206551,1754290347102,-425.10186561,0.0004757,120]
[377206552,1754290347112,-400.0,0.0004757,120]
[377206553,1754290347122,-33.31871565,0.0004757,120]
[377206554,1754290347134,-300.34668542,0.0004757,120]
[377206555,1754290348184,-401.12806278,0.00046575,120]
[377206556,1754290348195,-440.282274,0.00047,14]
[377206557,1754290348206,-440.282274,0.00047121,14]
[377206558,1754290348217,-741.44459893,0.0004757,120]
[377206559,1754290348228,-1135.97,0.0004757,120]
[377206560,1754290348239,-837.31,0.0004757,120]
[377206561,1754290348249,-631.71,0.0004757,120]
[377206562,1754290348259,-400.0,0.0004757,120]
[377206563,1754290348270,-400.0,0.0004757,120]
[377206564,1754290348280,-400.0,0.0004757,120]
[377206565,1754290348290,-943.05,0.0004757,120]
[377206566,1754290348300,-400.0,0.0004757,120]
[377206567,1754290348310,-874.81,0.0004757,120]
[377206568,1754290348320,-710.83,0.0004757,120]
[377206569,1754290348330,-400.0,0.0004757,120]
[377206570,1754290348340,-962.78,0.0004757,120]
[377206571,1754290348350,-521.3,0.0004757,120]
[377206572,1754290348360,-400.0,0.0004757,120]
[377206573,1754290348373,-486.36542732,0.0004757,120]
[377206574,1754290348386,-1178.65457268,0.0004757,120]
[377206575,1754290348396,-1123.16,0.0004757,120]
[377206576,1754290348406,-1203.56,0.0004757,120]
[377206577,1754290348417,-400.0,0.0004757,120]
[377206578,1754290348427,-943.52542732,0.0004757,120]
[377206579,1754290372990,-440.282274,0.00047121,14]
[377206580,1754290373000,-360.76457268,0.0004757,120]
[377206581,1754290373010,-498.27,0.0004757,120]
[377206582,1754290373020,-1203.79,0.0004757,120]
[377206583,1754290373030,-1029.19,0.0004757,120]
[377206584,1754290373039,-804.54,0.0004757,120]
[377206585,1754290373049,-902.84,0.0004757,120]
[377206586,1754290373059,-439.27,0.0004757,120]
[377206587,1754290373068,-1564.15,0.0004757,120]
[377206588,1754290373078,-151.0,0.0004757,14]
[377206589,1754290373088,-546.61,0.0004757,120]
[377206590,1754290373097,-410.11,0.0004757,120]
[377206591,1754290373107,-151.0,0.00047571,14]
[377206592,1754290373117,-161.047084,0.00047571,14]
[377206593,1754290373126,-161.047084,0.00047571,14]
[377206594,1754290373136,-151.0,0.00047571,14]
[377206595,1754290373146,-212.283583,0.00047571,14]
[377206596,1754290373156,-212.283583,0.00047571,14]
[377206597,1754290373165,-150.0,0.00047579,7]
[377206598,1754290373175,-193.0,0.0004758,14]
[377206599,1754290373185,-519.33329631,0.00047583,15]
[377206600,1754290373199,-150.0,0.00047615,14]
[377206601,1754290373209,-150.0,0.00047615,7]
[377206602,1754290373218,-151.0,0.0004766,14]
[377206603,1754290373228,-157.134854,0.0004766,14]
[377206604,1754290373237,-157.134854,0.0004766,14]
[377206605,1754290373247,-199.943647,0.0004766,14]
[377206606,1754290373257,-277.707319,0.0004766,14]
[377206607,1754290373266,-151.0,0.0004766,14]
[377206608,1754290373277,-277.707319,0.0004766,14]
[377206609,1754290373286,-299.798976,0.0004766,14]
[377206610,1754290373295,-151.0,0.0004766,14]
[377206611,1754290373305,-432.95,0.0004766,120]
[377206612,1754290373315,-151.0,0.0004766,14]
[377206613,1754290373325,-151.0,0.0004766,14]
[377206614,1754290373335,-1113.83,0.0004766,120]
[377206615,1754290373344,-461.975391,0.0004766,14]
[377206616,1754290373354,-461.975391,0.0004766,14]
[377206617,1754290373363,-400.0,0.0004766,120]
[377206618,1754290373373,-406.65,0.0004766,120]
[377206619,1754290373382,-1000.0,0.0004766,120]
[377206620,1754290373394,-560.64,0.0004766,120]
[377206621,1754290373404,-151.0,0.0004766,14]
[377206622,1754290373414,-400.0,0.0004766,120]
[377206623,1754290373424,-400.0,0.0004766,120]
[377206624,1754290373434,-710.83,0.0004766,120]
[377206625,1754290373443,-400.0,0.0004766,120]
[377206626,1754290373453,-649.27,0.0004766,120]
[377206627,1754290373462,-2792.42,0.0004766,120]
[377206628,1754290373472,-161.733733,0.00047669,14]
[377206629,1754290373481,-152.520638,0.00047669,14]
[377206630,1754290373491,-153.024142,0.00047669,14]
[377206631,1754290373501,-316.070445,0.00047669,14]
[377206632,1754290373510,-316.070445,0.00047669,14]
[377206633,1754290373520,-151.0,0.00047669,14]
[377206634,1754290373529,-151.0,0.00047669,14]
[377206635,1754290373539,-400.0,0.00047669,120]
[377206636,1754290373549,-400.0,0.00047669,120]
[377206637,1754290373559,-400.0,0.00047669,120]
[377206638,1754290373568,-400.0,0.00047669,120]
[377206639,1754290373578,-400.0,0.00047669,120]
[377206640,1754290373587,-400.0,0.00047669,16]
[377206641,1754290373597,-400.0,0.00047669,120]
[377206642,1754290373606,-335.424605,0.00047669,14]
[377206643,1754290373615,-335.424605,0.00047669,14]
[377206644,1754290373625,-400.0,0.00047669,120]
[377206645,1754290373636,-464.7563834,0.00047669,120]
[377206646,1754290373646,-548.66,0.00047669,120]
[377206647,1754290373656,-400.0,0.00047669,120]
[377206648,1754290373665,-151.0,0.00047669,14]
[377206649,1754290373675,-151.0,0.00047669,14]
[377206650,1754290373688,-400.0,0.00047669,120]
[377206651,1754290373699,-1932.33,0.00047669,120]
[377206652,1754290373709,-400.0,0.00047669,120]
[377206653,1754290373719,-472.4346024,0.00047669,120]
[377206654,1754290373730,-415.61,0.00047669,120]
[377206655,1754290373740,-1291.26,0.00047669,120]
[377206656,1754290373751,-1049.53,0.00047669,120]
[377206657,1754290373761,-400.0,0.00047669,90]
[377206658,1754290373771,-400.0,0.00047669,120]
[377206659,1754290373782,-400.0,0.00047669,120]
[377206660,1754290373793,-400.0,0.00047669,120]
[377206661,1754290373802,-424.15,0.00047669,120]
[377206662,1754290373812,-400.0,0.00047669,120]
[377206663,1754290373822,-424.59,0.00047669,120]
[377206664,1754290373832,-969.57,0.00047669,120]
[377206665,1754290373842,-1045.44,0.00047669,120]
[377206666,1754290373853,-151.0,0.00047669,14]
[377206667,1754290373863,-725.25,0.00047669,120]
[377206668,1754290373874,-400.0,0.00047669,120]
[377206669,1754290373886,-151.0,0.00047669,14]
[377206670,1754290373896,-400.0,0.00047669,120]
[377206671,1754290373906,-400.0,0.00047669,120]
[377206672,1754290373916,-400.0,0.00047669,120]
[377206673,1754290373925,-240.599875,0.00047669,120]
[377206674,1754290373935,-714.58,0.00047669,120]
[377206675,1754290373945,-400.0,0.00047669,120]
[377206676,1754290373954,-799.01,0.00047669,120]
[377206677,1754290373970,-151.0,0.00047669,14]
[377206678,1754290373980,-411.41,0.00047669,120]
[377206679,1754290373990,-445.01778216,0.00047669,120]
[377206680,1754290374000,-550.74,0.00047669,120]
[377206681,1754290374010,-1325.57,0.00047669,120]
[377206682,1754290374019,-400.0,0.00047669,120]
[377206683,1754290374029,-585.34,0.00047669,120]
[377206684,1754290374039,-151.0,0.00047669,14]
[377206685,1754290374049,-400.0,0.00047669,120]
[377206686,1754290374058,-887.25,0.00047669,120]
[377206687,1754290374073,-400.0,0.00047669,120]
[377206688,1754290374083,-400.0,0.00047669,120]
[377206689,1754290374094,-400.0,0.00047669,120]
[377206690,1754290374104,-667.22,0.00047669,120]
[377206691,1754290374115,-411.23,0.00047669,120]
[377206692,1754290374124,-401.59848776,0.00047669,120]
[377206693,1754290374136,-400.0,0.00047669,120]
[377206694,1754290374147,-606.02,0.00047669,120]
[377206695,1754290374158,-1502.07,0.00047669,120]
[377206696,1754290374168,-400.0,0.00047669,120]
[377206697,1754290374178,-400.0,0.00047669,120]
[377206698,1754290374188,-400.0,0.00047669,120]
[377206699,1754290374200,-1429.84,0.00047669,120]
[377206700,1754290374210,-400.0,0.00047669,120]
[377206701,1754290374220,-400.0,0.00047669,120]
[377206702,1754290374230,-282.554752,0.00047669,14]
[377206703,1754290374239,-413.75,0.00047669,120]
[377206704,1754290374250,-400.0,0.00047669,120]
[377206705,1754290374259,-1036.9,0.00047669,120]
[377206706,1754290374269,-400.0,0.00047669,120]
[377206707,1754290374279,-400.0,0.00047669,120]
[377206708,1754290374289,-798.55,0.00047669,120]
[377206709,1754290374299,-400.0,0.00047669,120]
[377206710,1754290374309,-400.0,0.00047669,120]
[377206711,1754290374319,-400.0,0.00047669,120]
[377206712,1754290374329,-400.0,0.00047669,120]
[377206713,1754290374339,-400.0,0.00047669,120]
[377206714,1754290374349,-617.54,0.00047669,120]
[377206715,1754290374360,-867.82,0.00047669,120]
[377206716,1754290374370,-400.0,0.00047669,120]
[377206717,1754290374379,-400.0,0.00047669,120]
[377206718,1754290374391,-151.0,0.00047669,14]
[377206719,1754290374400,-1082.12,0.00047669,120]
[377206720,1754290374410,-471.92,0.00047669,120]
[377206721,1754290374420,-400.0,0.00047669,120]
[377206722,1754290374430,-536.03,0.00047669,120]
[377206723,1754290374441,-400.0,0.00047669,120]
[377206724,1754290374451,-1159.47,0.00047669,120]
[377206725,1754290374461,-400.0,0.00047669,120]
[377206726,1754290374470,-1498.69,0.00047669,120]
[377206727,1754290374480,-862.09,0.00047669,120]
[377206728,1754290374490,-400.0,0.00047669,120]
[377206729,1754290374500,-854.43,0.00047669,120]
[377206730,1754290374514,-1082.83,0.00047669,120]
[377206731,1754290374525,-400.0,0.00047669,120]
[377206732,1754290374535,-1834.99,0.00047669,120]
[377206733,1754290374545,-447.19,0.00047669,120]
[377206734,1754290374555,-400.0,0.00047669,120]
[377206735,1754290374565,-715.03,0.00047669,120]
[377206736,1754290374575,-623.69,0.00047669,120]
[377206737,1754290374585,-878.68,0.00047669,120]
[377206738,1754290374595,-404.35,0.00047669,120]
[377206739,1754290374606,-1095.01,0.00047669,120]
[377206740,1754290374615,-584.16,0.00047669,120]
[377206741,1754290374626,-565.86,0.00047669,120]
[377206742,1754290374636,-400.0,0.00047669,120]
[377206743,1754290374647,-400.0,0.00047669,120]
[377206744,1754290374657,-403.09215142,0.00047669,120]
[377206745,1754290374667,-676.02,0.00047669,120]
[377206746,1754290374676,-1670.57,0.00047669,120]
[377206747,1754290374689,-400.0,0.00047669,120]
[377206748,1754290374699,-1199.94,0.00047669,120]
[377206749,1754290374709,-151.0,0.00047669,14]
[377206750,1754290374718,-543.84,0.00047669,120]
[377206751,1754290374730,-941.48,0.00047669,120]
[377206752,1754290374740,-400.0,0.00047669,120]
[377206753,1754290374750,-761.23,0.00047669,120]
[377206754,1754290374760,-629.68,0.00047669,120]
[377206755,1754290374771,-400.0,0.00047669,120]
[377206756,1754290374782,-400.0,0.00047669,120]
[377206757,1754290374794,-400.0,0.00047669,120]
[377206758,1754290374806,-400.0,0.00047669,120]
[377206759,1754290374816,-400.0,0.00047669,120]
[377206760,1754290374827,-400.0,0.00047669,120]
[377206761,1754290374837,-400.0,0.00047669,120]
[377206762,1754290374847,-497.21,0.00047669,120]
[377206763,1754290374857,-1526.71,0.00047669,120]
[377206764,1754290374867,-400.0,0.00047669,120]
[377206765,1754290374878,-411.22,0.00047669,120]
[377206766,1754290374888,-518.84,0.00047669,120]
[377206767,1754290374898,-1696.14,0.00047669,120]
[377206768,1754290374907,-400.0,0.00047669,120]
[377206769,1754290374917,-463.73,0.00047669,120]
[377206770,1754290374927,-563.54,0.00047669,120]
[377206771,1754290374937,-578.38,0.00047669,120]
[377206772,1754290374949,-702.4,0.00047669,120]
[377206773,1754290374960,-1563.75,0.00047669,120]
[377206774,1754290374971,-703.1,0.00047669,120]
[377206775,1754290374982,-452.2,0.00047669,120]
[377206776,1754290374992,-400.0,0.00047669,120]
[377206777,1754290375002,-901.45,0.00047669,120]
[377206778,1754290375012,-400.0,0.00047669,120]
[377206779,1754290375022,-980.37,0.00047669,120]
[377206780,1754290375031,-400.0,0.00047669,120]
[377206781,1754290375041,-400.0,0.00047669,120]
[377206782,1754290375051,-2641.33,0.00047669,120]
[377206783,1754290375061,-400.0,0.00047669,120]
[377206784,1754290375071,-1192.35,0.00047669,120]
[377206785,1754290375081,-400.0,0.00047669,120]
[377206786,1754290375091,-400.0,0.00047669,120]
[377206787,1754290375100,-1018.77,0.00047669,120]
[377206788,1754290375110,-400.0,0.00047669,120]
[377206789,1754290375120,-151.0,0.00047669,14]
[377206790,1754290375130,-967.38,0.00047669,120]
[377206791,1754290375140,-400.0,0.00047669,120]
[377206792,1754290375150,-400.0,0.00047669,120]
[377206793,1754290375159,-987.9,0.00047669,120]
[377206794,1754290375169,-400.0,0.00047669,120]
[377206795,1754290375179,-400.0,0.00047669,120]
[377206796,1754290375189,-400.0,0.00047669,120]
[377206797,1754290375198,-177.685595,0.00047669,14]
[377206798,1754290375208,-400.0,0.00047669,120]
[377206799,1754290375218,-400.0,0.00047669,120]
[377206800,1754290375228,-400.0,0.00047669,120]
[377206801,1754290375238,-400.0,0.00047669,120]
[377206802,1754290375425,-151.0,0.00047669,14]
[377206803,1754290375436,-177.685595,0.00047669,14]
[377206804,1754290375445,-981.56,0.00047669,120]
[377206805,1754290375454,-444.77,0.00047669,120]
[377206806,1754290375464,-400.0,0.00047669,120]
[377206807,1754290375474,-400.0,0.00047669,120]
[377206808,1754290375483,-400.0,0.00047669,120]
[377206809,1754290375493,-1040.4,0.00047669,120]
[377206810,1754290375503,-807.78,0.00047669,120]
[377206811,1754290375512,-468.45,0.00047669,120]
[377206812,1754290375522,-400.0,0.00047669,120]
[377206813,1754290375532,-2248.33,0.00047669,120]
[377206814,1754290375542,-1636.65,0.00047669,120]
[377206815,1754290375552,-400.0,0.00047669,120]
[377206816,1754290375561,-400.0,0.00047669,120]
[377206817,1754290375571,-965.01,0.00047669,120]
[377206818,1754290375580,-1321.39,0.00047669,120]
[377206819,1754290375590,-151.0,0.00047669,14]
[377206820,1754290375599,-400.0,0.00047669,120]
[377206821,1754290375609,-604.76,0.00047669,120]
[377206822,1754290375619,-400.0,0.00047669,120]
[377206823,1754290375630,-1025.37,0.00047669,120]
[377206824,1754290375640,-1457.38,0.00047669,120]
[377206825,1754290375650,-271.980692,0.00047669,14]
[377206826,1754290375659,-852.5,0.00047669,120]
[377206827,1754290375670,-1520.01,0.00047669,120]
[377206828,1754290375680,-271.980692,0.00047669,14]
[377206829,1754290375693,-607.36,0.00047669,120]
[377206830,1754290375702,-400.0,0.00047669,120]
[377206831,1754290375712,-400.0,0.00047669,120]
[377206832,1754290375726,-834.0,0.00047669,120]
[377206833,1754290375735,-650.45,0.00047669,120]
[377206834,1754290375745,-666.91,0.00047669,120]
[377206835,1754290375756,-400.0,0.00047669,120]
[377206836,1754290375766,-531.65,0.00047669,120]
[377206837,1754290375776,-1125.68,0.00047669,120]
[377206838,1754290375787,-609.72,0.00047669,120]
[377206839,1754290375796,-500.0,0.00047669,120]
[377206840,1754290375807,-400.0,0.00047669,120]
[377206841,1754290375818,-434.85,0.00047669,120]
[377206842,1754290375828,-400.0,0.00047669,120]
[377206843,1754290375838,-1398.86,0.00047669,120]
[377206844,1754290375850,-919.11,0.00047669,120]
[377206845,1754290375860,-1014.5,0.00047669,120]
[377206846,1754290375869,-400.0,0.00047669,120]
[377206847,1754290375880,-668.1,0.00047669,60]
[377206848,1754290375894,-400.0,0.00047669,120]
[377206849,1754290375903,-400.0,0.00047669,120]
[377206850,1754290375913,-400.0,0.00047669,120]
[377206851,1754290375923,-699.35,0.00047669,120]
[377206852,1754290375932,-151.0,0.00047669,14]
[377206853,1754290375941,-421.68,0.00047669,120]
[377206854,1754290375951,-1553.465892,0.00047669,14]
[377206855,1754290375961,-684.22,0.00047669,120]
[377206856,1754290375971,-1553.465892,0.00047669,14]
[377206857,1754290375981,-400.0,0.00047669,120]
[377206858,1754290375990,-400.0,0.00047669,120]
[377206859,1754290376000,-1119.51,0.00047669,120]
[377206860,1754290376009,-1124.99,0.00047669,120]
[377206861,1754290376019,-400.0,0.00047669,120]
[377206862,1754290376029,-719.07,0.00047669,120]
[377206863,1754290376039,-400.0,0.00047669,120]
[377206864,1754290376048,-583.14,0.00047669,120]
[377206865,1754290376058,-400.0,0.00047669,120]
[377206866,1754290376068,-757.99,0.00047669,120]
[377206867,1754290376077,-400.0,0.00047669,120]
[377206868,1754290376089,-1193.25,0.00047669,120]
[377206869,1754290376101,-400.0,0.00047669,120]
[377206870,1754290376112,-767.2,0.00047669,120]
[377206871,1754290376122,-493.62,0.00047669,120]
[377206872,1754290376131,-400.0,0.00047669,120]
[377206873,1754290376143,-226.969151,0.00047669,14]
[377206874,1754290376153,-400.0,0.00047669,120]
[377206875,1754290376162,-400.0,0.00047669,120]
[377206876,1754290376176,-1684.73,0.00047669,120]
[377206877,1754290376186,-226.969151,0.00047669,14]
[377206878,1754290376196,-400.0,0.00047669,120]
[377206879,1754290376206,-404.58946311,0.00047669,120]
[377206880,1754290376216,-642.85,0.00047669,120]
[377206881,1754290376225,-1144.48,0.00047669,120]
[377206882,1754290376234,-436.81,0.00047669,120]
[377206883,1754290376244,-400.0,0.00047669,120]
[377206884,1754290376255,-497.01,0.00047669,120]
[377206885,1754290376265,-1385.55,0.00047669,120]
[377206886,1754290376275,-400.0,0.00047669,120]
[377206887,1754290376285,-759.368077,0.00047669,14]
[377206888,1754290376294,-400.0,0.00047669,120]
[377206889,1754290376304,-759.368077,0.00047669,14]
[377206890,1754290376314,-711.19,0.00047669,120]
[377206891,1754290376323,-1373.04,0.00047669,120]
[377206892,1754290376333,-400.0,0.00047669,120]
[377206893,1754290376343,-400.0,0.00047669,120]
[377206894,1754290376352,-400.0,0.00047669,120]
[377206895,1754290376362,-1677.71,0.00047669,120]
[377206896,1754290376373,-400.0,0.00047669,120]
[377206897,1754290376383,-400.0,0.00047669,120]
[377206898,1754290376394,-1070.14,0.00047669,120]
[377206899,1754290376403,-400.0,0.00047669,120]
[377206900,1754290376413,-1221.48,0.00047669,120]
[377206901,1754290376424,-400.0,0.00047669,120]
[377206902,1754290376434,-506.15,0.00047669,120]
[377206903,1754290376446,-400.0,0.00047669,120]
[377206904,1754290376457,-400.0,0.00047669,120]
[377206905,1754290376469,-400.0,0.00047669,120]
[377206906,1754290376481,-813.29,0.00047669,120]
[377206907,1754290376491,-303.3750464,0.00047669,120]
[377206908,1754290376501,-1157.7,0.00047669,120]
[377206909,1754290376512,-400.0,0.00047669,120]
[377206910,1754290376523,-400.0,0.00047669,120]
[377206911,1754290376535,-400.0,0.00047669,120]
[377206912,1754290376546,-400.0,0.00047669,120]
[377206913,1754290376556,-502.19,0.00047669,120]
[377206914,1754290376567,-400.0,0.00047669,120]
[377206915,1754290376580,-400.0,0.00047669,120]
[377206916,1754290376592,-400.0,0.00047669,120]
[377206917,1754290376602,-400.0,0.00047669,120]
[377206918,1754290376616,-440.08,0.00047669,120]
[377206919,1754290376627,-1186.51,0.00047669,120]
[377206920,1754290376639,-577.15,0.00047669,120]
[377206921,1754290376649,-400.0,0.00047669,120]
[377206922,1754290376659,-400.0,0.00047669,120]
[377206923,1754290376670,-1282.55,0.00047669,120]
[377206924,1754290376682,-400.0,0.00047669,120]
[377206925,1754290376695,-400.0,0.00047669,120]
[377206926,1754290376706,-400.0,0.00047669,120]
[377206927,1754290376716,-428.3,0.00047669,120]
[377206928,1754290376726,-650.0,0.00047669,120]
[377206929,1754290376736,-400.0,0.00047669,120]
[377206930,1754290376746,-943.82,0.00047669,120]
[377206931,1754290376755,-400.0,0.00047669,120]
[377206932,1754290376765,-400.0,0.00047669,120]
[377206933,1754290376775,-879.395519,0.00047669,14]
[377206934,1754290376785,-400.0,0.00047669,120]
[377206935,1754290376795,-879.395519,0.00047669,14]
[377206936,1754290376805,-400.0,0.00047669,120]
[377206937,1754290376816,-806.05,0.00047669,120]
[377206938,1754290376828,-952.84,0.00047669,120]
[377206939,1754290376839,-158.090025,0.00047669,14]
[377206940,1754290376850,-440.282274,0.00047669,14]
[377206941,1754290376860,-151.0,0.0004767,14]
[377206942,1754290376870,-223.433648,0.0004767,14]
[377206943,1754290376881,-223.433648,0.0004767,14]
[377206944,1754290376892,-186.242691,0.0004767,14]
[377206945,1754290376902,-186.242691,0.0004767,14]
[377206946,1754290376912,-151.0,0.0004767,14]
[377206947,1754290376922,-247.687436,0.0004767,14]
[377206948,1754290376932,-247.687436,0.0004767,14]
[377206949,1754290376942,-1100.823876,0.0004767,14]
[377206950,1754290376952,-1100.823876,0.0004767,14]
[377206951,1754290376963,-192.26999714,0.0004767,120]
[377206952,1754290376974,-151.0,0.0004767,14]
[377206953,1754290376984,-151.0,0.0004767,14]
[377206954,1754290376994,-400.0,0.0004767,120]
[377206955,1754290377004,-400.0,0.0004767,120]
[377206956,1754290377014,-400.0,0.0004767,120]
[377206957,1754290377024,-277.707319,0.0004767,14]
[377206958,1754290377034,-151.0,0.0004767,14]
[377206959,1754290377044,-277.707319,0.0004767,14]
[377206960,1754290377054,-151.0,0.0004767,14]
[377206961,1754290377063,-1561.925184,0.0004767,14]
[377206962,1754290377074,-1561.925184,0.0004767,14]
[377206963,1754290377084,-151.0,0.0004767,14]
[377206964,1754290377094,-151.0,0.0004767,14]
[377206965,1754290377103,-461.975391,0.0004767,14]
[377206966,1754290377113,-461.975391,0.0004767,14]
[377206967,1754290377123,-606.53,0.0004767,120]
[377206968,1754290377133,-400.0,0.0004767,120]
[377206969,1754290377143,-402.92,0.0004767,120]
[377206970,1754290377153,-400.0,0.0004767,120]
[377206971,1754290377163,-151.0,0.0004767,14]
[377206972,1754290377172,-1022.63,0.0004767,120]
[377206973,1754290377183,-400.0,0.0004767,120]
[377206974,1754290377192,-1517.31,0.0004767,120]
[377206975,1754290377202,-2719.87,0.0004767,118]
[377206976,1754290377212,-400.0,0.0004767,120]
[377206977,1754290377222,-1594.58,0.0004767,120]
[377206978,1754290377233,-7975.55,0.0004767,120]
[377206979,1754290377247,-614.98,0.0004767,120]
[377206980,1754290377256,-400.0,0.00047671,120]
[377206981,1754290377266,-400.0,0.00047671,120]
[377206982,1754290377275,-833.14,0.00047671,120]
[377206983,1754290377285,-400.0,0.00047671,120]
[377206984,1754290377296,-400.0,0.00047671,120]
[377206985,1754290377305,-494.2,0.00047671,120]
[377206986,1754290377315,-400.0,0.00047671,120]
[377206987,1754290377325,-519.35,0.00047671,120]
[377206988,1754290377335,-400.0,0.00047671,120]
[377206989,1754290377345,-519.18,0.00047671,120]
[377206990,1754290377354,-1160.29,0.00047671,120]
[377206991,1754290377364,-418.80981901,0.00047671,120]
[377206992,1754290377373,-400.0,0.00047671,120]
[377206993,1754290377382,-873.2,0.00047671,120]
[377206994,1754290377393,-1631.73,0.00047671,120]
[377206995,1754290377402,-1028.43,0.00047671,120]
[377206996,1754290377411,-544.09,0.00047671,120]
[377206997,1754290377421,-400.0,0.00047671,120]
[377206998,1754290377430,-400.0,0.00047671,120]
[377206999,1754290377450,-986.53,0.00047671,120]
[377207000,1754290377460,-400.0,0.00047671,120]
[377207001,1754290377469,-400.0,0.00047671,120]
[377207002,1754290377479,-1075.35,0.00047671,120]
[377207003,1754290377489,-574.06,0.00047671,120]
[377207004,1754290377498,-1000.0,0.00047671,120]
[377207005,1754290377508,-719.27,0.00047671,30]
[377207006,1754290377519,-643.54,0.00047671,120]
[377207007,1754290377528,-400.0,0.00047671,120]
[377207008,1754290377538,-1004.04,0.00047671,120]
[377207009,1754290377548,-400.0,0.00047671,120]
[377207010,1754290377558,-400.0,0.00047671,120]
[377207011,1754290377567,-898.59,0.00047671,120]
[377207012,1754290377577,-400.0,0.00047671,120]
[377207013,1754290377587,-403.38492563,0.00047671,120]
[377207014,1754290377597,-1039.58,0.00047671,120]
[377207015,1754290377607,-400.0,0.00047671,120]
[377207016,1754290377617,-400.0,0.00047671,120]
[377207017,1754290377626,-400.0,0.00047671,120]
[377207018,1754290377636,-400.0,0.00047671,120]
[377207019,1754290377646,-665.08,0.00047671,120]
[377207020,1754290377656,-400.0,0.00047671,120]
[377207021,1754290377665,-826.15,0.00047671,120]
[377207022,1754290377675,-176.433134,0.00047671,14]
[377207023,1754290377688,-1346.51,0.00047671,120]
[377207024,1754290377698,-400.0,0.00047671,120]
[377207025,1754290377707,-466.13,0.00047671,120]
[377207026,1754290377717,-653.67,0.00047671,120]
[377207027,1754290377729,-400.0,0.00047671,120]
[377207028,1754290377740,-1027.78,0.00047671,120]
[377207029,1754290377749,-604.06,0.00047671,120]
[377207030,1754290377761,-1589.09,0.00047671,120]
[377207031,1754290377772,-1584.22,0.00047671,120]